Cogmind - Beta 16 @@@ ROGUE MODE // 2025.11.29 @ 03:47:36 Player: AngelSpirit Result: Destroyed self with Grenade Launcher Performance ------------- Evolutions (0) 0 Regions Visited (2) 400 Robots Destroyed (30) 150 Value Destroyed (654) 654 Prototype IDs (0) 0 Alien Tech Used (0) 0 Bonus (0) 0 TOTAL SCORE: 1204 Bonus ------- None Cogmind --------- Core Integrity 0/250 Matter 242/300 Energy 250/250 System Corruption 0% Temperature Cool (0) Movement Rolling (90) Location -10/Subcaves Parts ------- > --- POWER (1) -------- Ion Engine > --- PROPULSION (2) --- Wheel Compact Wheel > --- UTILITY (2) ------ Medium Storage Unit Structural Scanner > --- WEAPON (2) ------- Assault Rifle Grenade Launcher > --- INVENTORY (10) --- Ion Engine Wheel Medium Matter Pod (86) Signal Interpreter Hacking Suite Hacking Suite Hacking Suite Assault Rifle Peak State ------------ > --- POWER ------------ Ion Engine > --- PROPULSION ------- Wheel Wheel > --- UTILITY ---------- Medium Storage Unit Structural Scanner > --- WEAPON ----------- Subdweller Laser Assault Rifle > --- INVENTORY -------- Ion Engine Wheel Compact Wheel Medium Matter Pod Signal Interpreter Hacking Suite Hacking Suite Hacking Suite Assault Rifle Grenade Launcher [Rating: 9] Favorites ----------- Power Ion Engine Engine Ion Engine Propulsion Wheel Wheel Wheel Utility Medium Storage Unit Device Structural Scanner Storage Medium Storage Unit Processor Targeting Computer Weapon Assault Rifle Energy Gun Subdweller Laser Ballistic Gun Assault Rifle Launcher Grenade Launcher Build | -11 -10 -10 ------- Run | Yrd Mat Sub Slots Evolved . | . . . Power . | . . . Propulsion . | . . . Utility . | . . . Weapon . | . . . Parts Attached 23 | 6 15 2 Power 4 | 1 3 . Engine 4 | 1 3 . Core . | . . . Reactor . | . . . Propulsion 6 | 2 3 1 Treads . | . . . Leg . | . . . Wheel 6 | 2 3 1 Hover . | . . . Flight . | . . . Utility 4 | 1 3 . Device 1 | . 1 . Storage 2 | 1 1 . Processor 1 | . 1 . Hackware . | . . . Protection . | . . . Artifact . | . . . Weapon 9 | 2 6 1 Energy Gun 1 | . . 1 Energy Cannon . | . . . Ballistic Gun 7 | 2 5 . Ballistic Cannon . | . . . Launcher 1 | . 1 . Special Weapon . | . . . Impact Weapon . | . . . Slashing Weapon . | . . . Piercing Weapon . | . . . Special Melee Weapon . | . . . Unidentified Prototypes . | . . . Parts Lost 4 | . 3 1 Power 1 | . 1 . Propulsion 2 | . 1 1 Utility . | . . . Weapon 1 | . 1 . Highest Loss Streak 2 | . 2 1 To Critical Strikes . | . . . Average Backups 6 | . 5 9 Power . | . . 1 Propulsion 1 | . . 1 Utility 3 | . 2 5 Weapon 1 | . 1 1 Tool/Special . | . . . Unused Backups 9 | . 2 7 Power 1 | . 1 . Propulsion 2 | . 1 1 Utility 5 | . . 5 Weapon 1 | . . 1 Tool/Special . | . . . Average Slot Usage (%) 96 | . 93 99 Engine 13 | . 13 14 Wheel 27 | . 27 27 Device 6 | . 2 14 Storage 14 | . 14 14 Processor 3 | . 6 . Energy Gun 2 | . . 5 Ballistic Gun 24 | . 28 18 Launcher 1 | . . 4 Peak Build Rating 9 | 6 8 9 Average Rating 7 | 4 6 8 On Entrance 4 | . 6 8 Avg Prop Armor Cover (%) . | . . . Naked Turns . | . . . Heaviest Build 22 | 12 20 22 Greatest Support 26 | 26 26 26 Greatest Overweight (x) 1 | . 1 1 Average Overweight (x) . | . . . Largest Inventory Capacity 10 | 8 10 10 Average Capacity 9 | 6 9 10 Most Carried 10 | 1 10 10 Average Carried 6 | . 5 9 Final Capacity 10 | 8 10 10 Final Carried 10 | 1 10 8 Class Distribution -------------------- 100% | Mutant Dominant Class ---------------- Mutant | -10/Materials Mutant | -10/Subcaves Resources | -11 -10 -10 ----------- Run | Yrd Mat Sub Matter Collected 970 | 248 579 143 Remotely . | . . . Salvage Created 752 | . 564 188 Parts 75 | . 62 13 Haulers Intercepted 1 | . 1 . Recyclers Shooed 1 | . 1 . Parts Field Recycled . | . . . Retrieved Matter . | . . . Parts Self-Destructed 3 | . . 3 Prevented . | . . . Parts Restored . | . . . Kills | -11 -10 -10 ------- Run | Yrd Mat Sub Combat Hostiles Destroyed 20 | . 15 5 Guns 15 | . 12 3 AOE 5 | . 3 2 Classes Destroyed 8 | . 7 1 Worker 2 | . 2 . Hauler 1 | . 1 . Recycler 1 | . 1 . Operator 3 | . 3 . Watcher 3 | . 3 . Swarmer 8 | . 8 . Grunt 7 | . 7 . Subdweller 5 | . . 5 Best Kill Streak 7 | . 7 2 Combat Bots Only 6 | . 6 2 Max Kills in Single Turn 3 | . 3 1 Gunslinging . | . . . Exploded 3 | . 3 1 Melee . | . . . Uniques/NPCs Destroyed . | . . . Combat | -11 -10 -10 -------- Run | Yrd Mat Sub Hostile Shots Fired 95 | . 77 18 Missed 26 | . 22 4 Hits 69 | . 55 14 Projectile 69 | . 55 14 Damage Taken 890 | . 521 369 Core 255 | . 91 164 Absorbed by Shields . | . . . Regen/Repaired (Parts) 22 | . 22 . Core Remaining (%) 100 | 100 . . Volleys Fired 80 | . 64 16 Largest 2 | . 2 2 Hottest 80 | . 40 80 Shots Fired 157 | . 127 30 Gun 150 | . 126 24 Cannon . | . . . Launcher 7 | . 1 6 Special . | . . . Kinetic 144 | . 126 18 Thermal 6 | . . 6 Explosive 7 | . 1 6 Electromagnetic . | . . . Robot Hit Streak 7 | . 7 5 Robot Miss Streak 5 | . 5 2 Penetration Max . | . . . Secondary Targets . | . . . Shots Hit Robots 87 | . 66 21 Core Hits 48 | . 36 12 Critical Kills . | . . . Critical Parts Destroyed . | . . . Critical Strikes . | . . . Melee Attacks . | . . . Impact . | . . . Slashing . | . . . Piercing . | . . . Sneak Attacks . | . . . Combat Hostiles . | . . . Follow-up Attacks . | . . . Damage Inflicted 1594 | . 1059 535 Guns 1106 | . 859 247 Cannons . | . . . Explosions 488 | . 200 288 Melee . | . . . Ramming . | . . . Kinetic 1039 | . 859 180 Thermal 67 | . . 67 Explosive 488 | . 200 288 Electromagnetic . | . . . Impact . | . . . Slashing . | . . . Piercing . | . . . Highest Corruption . | . . . Average Corruption . | . . . Corruption Purged . | . . . Corruption Blocked . | . . . Overload Shots . | . . . Overflow Damage 14 | . 14 . Projectiles . | . . . Explosions 14 | . 14 . Melee . | . . . Knockbacks . | . . . Impact . | . . . Kinetic . | . . . Secondary . | . . . Self-Inflicted Damage 46 | . 23 23 Shots 2 | . 1 1 Rammed . | . . . Targets Rammed . | . . . Kicked . | . . . Crushed . | . . . Highest Temperature 1 | . 1 . Average Temperature 1 | . 1 . Received Heat Transfer 165 | . 114 51 Siege Activations . | . . . Martial Activations . | . . . Shielding Activations . | . . . Robots Disrupted . | . . . Combat Hostiles . | . . . Robots Corrupted . | . . . Combat Hostiles . | . . . Parts Fried . | . . . Impact Corruptions . | . . . Robots Melted . | . . . Combat Hostiles . | . . . Parts Melted 1 | . . 1 Heat Transferred 75 | . . 75 Parts Sabotaged . | . . . Parts Stolen . | . . . Parts Stripped . | . . . Power Chain Reactions . | . . . Alert | -11 -10 -10 ------- Run | Yrd Mat Sub Maximum Alert Level . | . . . Low Security (%) 100 | 100 100 . Level 1 . | . . . Level 2 . | . . . Level 3 . | . . . Level 4 . | . . . Level 5 . | . . . High Security . | . . . Max Security . | . . . Peak Influence 147 | . 147 . Initial . | . . . Average 81 | . 84 . Influence Increases 500 | . 500 . Destroy 0b10 Robot/C 300 | . 300 . Destroy 0b10 Robot/NC 50 | . 50 . Destroy Leader 88 | . 88 . Successful Hack 5 | . 5 . Disable Machine 45 | . 45 . Destroy Structure 12 | . 12 . Influence Decreases 500 | . 389 111 Entered New Map 54 | . . 54 Time Decay 416 | . 359 57 Lost Part 30 | . 30 . Squads Dispatched 6 | . 6 . Investigation 2 | . 2 . Extermination . | . . . Reinforcement 4 | . 4 . Assault . | . . . Garrison . | . . . Intercept . | . . . Searches Triggered . | . . . Construction Impeded . | . . . Haulers Reinforced . | . . . Active Scanning Responses . | . . . Cargo Convoy Interrupts . | . . . Stealth | -11 -10 -10 --------- Run | Yrd Mat Sub Distress Signals 1 | . 1 . Communications Jammed . | . . . Distress Signals . | . . . Times Spotted 33 | . 27 6 Peak Tracking Total 7 | . 7 2 Tactical Retreats . | . . . Traps | -11 -10 -10 ------- Run | Yrd Mat Sub Traps Triggered 1 | . . 1 Indirectly . | . . . Trap Hack Attempts . | . . . Triggered . | . . . Disarmed . | . . . Reprogrammed . | . . . Reused . | . . . Traps Extracted . | . . . Installed . | . . . Triggered . | . . . Machines | -11 -10 -10 ---------- Run | Yrd Mat Sub Machines Disabled 3 | . 3 . Max in Single Turn 3 | . 3 . Machines Repaired . | . . . Machines Dismantled . | . . . Machines Sabotaged . | . . . Overloaded Fab Kills . | . . . Hacking | -11 -10 -10 --------- Run | Yrd Mat Sub Machines Accessed 7 | . 7 . Terminals 4 | . 4 . Fabricators . | . . . Repair Stations 1 | . 1 . Recycling Units 2 | . 2 . Scanalyzers . | . . . Garrison Access . | . . . Total Hacks 17 | . 17 . Successful 10 | . 10 . Failed 7 | . 7 . Catastrophic 3 | . 3 . Database Lockouts . | . . . Manual 6 | . 6 . Terminals 7 | . 7 . Fabricators . | . . . Repair Stations 2 | . 2 . Recycling Units 8 | . 8 . Scanalyzers . | . . . Garrison Access . | . . . Terminal Hacks 1 | . 1 . Locate Traps 1 | . 1 . Fabricator Hacks . | . . . Repair Station Hacks 2 | . 2 . Scan Component 1 | . 1 . Repair 1 | . 1 . Recycling Unit Hacks 5 | . 5 . Process 2 | . 2 . Report Inventory 2 | . 2 . Retrieve Matter 1 | . 1 . Scanalyzer . | . . . Garrison Access Hacks . | . . . Unauthorized Hacks 2 | . 2 . Terminals 2 | . 2 . Botnet 2 | . 2 . Fabricators . | . . . Repair Stations . | . . . Recycling Units . | . . . Scanalyzers . | . . . Garrison Access . | . . . Data Cores Recovered . | . . . Used . | . . . Hacking Detections 6 | . 6 . Full Trace Events 2 | . 2 . Feedback Events . | . . . Feedback Blocked . | . . . Robot Schematics Acquired . | . . . Robots Built . | . . . Authchips . | . . . Time . | . . . Total Robot Build Rating . | . . . Part Schematics Acquired . | . . . Parts Built . | . . . Authchips . | . . . Time . | . . . Total Part Build Rating . | . . . Part Studies Acquired . | . . . Parts Repaired 1 | . 1 . Time 26 | . 26 . Parts Recycled . | . . . Recycled Matter 353 | . 353 . Retrieved Matter 261 | . 261 . Retrieved Components . | . . . Parts Scanalyzed . | . . . Part Schematics Acquired . | . . . Parts Damaged . | . . . Bothacking | -11 -10 -10 ------------ Run | Yrd Mat Sub Used RIF Installer . | . . . Robots Hacked . | . . . Non-combat . | . . . Combat . | . . . Robot Hacks Applied . | . . . Relay Couplers Released . | . . . Fabnet Peak Effective % . | . . . Robots Rewired . | . . . Allies Hacked . | . . . Hacks Repelled . | . . . Allies | -11 -10 -10 -------- Run | Yrd Mat Sub Total Allies . | . . . Largest Group . | . . . Highest-Rated Group . | . . . Highest-Rated Ally . | . . . Total Orders . | . . . Ally Attacks . | . . . Total Damage . | . . . Kills . | . . . Allies Corrupted . | . . . Allies Melted . | . . . Intel | -11 -10 -10 ------- Run | Yrd Mat Sub Active Infowar (turns) 766 | . 161 605 Structural 766 | . 161 605 Robot Analysis Total . | . . . Derelict Logs Recovered . | . . . Drone Launches . | . . . Drone Recoveries . | . . . Exploration | -11 -10 -10 ------------- Run | Yrd Mat Sub Turns Passed 1632 | 42 985 605 Spaces Moved 1488 | 37 841 610 Core 4 | 4 . . Treads . | . . . Legs . | . . . Wheels 1484 | 33 841 610 Hover . | . . . Flight . | . . . Fastest Speed 50 | 50 80 80 Average Speed 85 | 86 84 86 Slowest Speed 115 | 100 115 95 Overloaded Moves . | . . . Propulsion Burnouts . | . . . Robots Hopped . | . . . Potential Cave-ins . | . . . Cave-ins Triggered . | . . . Exploration Rate (%) 45 | 3 97 35 Regions Visited 2 Branch Regions 1 Pre-discovered Areas . | . . . Known Exits Taken . | . . . Unknown Exits Taken 2 | 1 1 . Scrap Searched . | . . . Spaces Dug 5 | . . 5 Terrain Destroyed 33 | . 10 23 Melee . | . . . Projectile . | . . . AOE 33 | . 10 23 Terrain Rammed . | . . . Walls Destroyed . | . . . Machines Disabled . | . . . Actions | -11 -10 -10 --------- Run | Yrd Mat Sub Total 1685 | 43 986 656 Wait 61 | . 39 22 Move 1486 | 36 840 610 Hop . | . . . Pick Up 18 | 1 16 1 Fast Attach 10 | 6 4 . Attach 3 | . 2 1 Detach . | . . . Swap 14 | . 10 4 Drop 13 | . 11 2 Fire 80 | . 64 16 Melee . | . . . Ram . | . . . Kick . | . . . Crush . | . . . Escape Stasis . | . . . Rewire . | . . . Trap . | . . . Miscellaneous . | . . . Route ------- -11/Scrapyard -10/Materials (discovered 5 exits: [*Mat x3] / [*Min] / [*Sub]) -10/Subcaves History --------- Turn | Location | Event 20 | -11/Scrapyard | Discovered new exit (range 14) 43 | -11/Scrapyard | Entered Materials 236 | -10/Materials | Discovered new exit (range 11) 318 | -10/Materials | Build established: Mutant 425 | -10/Materials | Discovered new exit (range 13) 477 | -10/Materials | Discovered new exit (range 10) 686 | -10/Materials | Discovered new exit (range 15) 736 | -10/Materials | Repaired Grenade Launcher 1022 | -10/Materials | Discovered new exit (range 8) 1028 | -10/Materials | Entered Subcaves 1082 | -10/Subcaves | Shifting Twisted Machinery released Sub. Laser 1149 | -10/Subcaves | Shifting Twisted Machinery released Flamer 1293 | -10/Subcaves | Core integrity fell below 50% 1330 | -10/Subcaves | Core integrity fell below 20% 1633 | -10/Subcaves | Destroyed self with Grenade Launcher Last Messages --------------- 01331_ NP-30D(R) destroyed. 01335_ Acquired 43 matter. 01336_ Subatomizers dissect the Sub. Laser. 01336_ Acquired 53 matter. 01349_ Subatomizers dissect the Sub. Laser. 01420_ Subatomizers dissect the Sub. Monowheel. 01491_ Sub. Laser shoots sparks and powers down. 01495_ DV-1R5(R) destroyed. 01497_ Subatomizers dissect the Sub. Monowheel. 01497_ The unstable cave ceiling collapses. 01498_ 6X-GCS(R) affixes Scrap Shield Fragment to Scrap Shield. 01499_ Wheel destroyed. 01503_ 6X-GCS(R) affixes Scrap Shield Fragment to Scrap Shield. 01504_ 6X-GCS(R) destroyed. 01516_ Acquired 25 matter. 01518_ The unstable cave ceiling collapses. 01528_ Dropped Broken Sub. Laser. 01627_ Subatomizers dissect the Sub. Monowheel. Map ----- +----------------------------------------------------+ | ????????????### ##### ######?????????????? | | ????????????##^ # ###### #####??????????????? | | ????????????## # ######### #########??????????? | | ????????????### #####?## ##########?????????? | | ????????????#### ######?### ##?????????? | | ?????????????### ###?## ##### ##?????????? | | ?????????????#### ##?### ##"" ## ##?????????? | | ????????????#### ##?### #" ????????????????? | | ????????####### ##?## ##" ???????????????? | | ??????######## ####### ## "##????????????? | | ?????#### ##### ####### # #### ????????????? | | ????#### ###### #### # # ????????????? | | ????### #### =##& #######????????????? | | ?##### ## & [&! #######????????????? | | ###### # !& =### #####?????????????? | | ### ## #### ##?????????????? | | ## ## ##### ##?????????????? | | # ## ###### ###?????????????? | | #### ##### ###?????????????? | | #### ####### #### ###?????????????? | | ## ####### ### ###?????????????? | | ### ##?????????????? | | ##?????????????? | | ## ####?????????????? | | ### ##### ##### ####?????????????? | | ################### @# ####?????????????? | | ########?######### ##?????????????? | | ###??????????????### # ###?????????????? | | ###??????????????### # ###?????????????? | | #????????????????## # ##??????????????? | | ##????????????????### #### ###??????????????? | | ####????????????????## ### ####??????????????? | | ###?????????????????### #### ###???????????????? | | ????????????????????######### ###????????????????? | | ?????????????????????############????????????????? | | ??????????????????????????? ####?????????????????? | | ?????????????????????????????????????????????????? | | ?????????????????????????????????????????????????? | | ?????????????????????????????????????????????????? | | ?????????????????????????????????????????????????? | | ?????????????????????????????????????????????????? | | ?????????????????????????????????????????????????? | | ?????????????????????????????????????????????????? | | ?????????????????????????????????????????????????? | | ?????????????????????????????????????????????????? | | ?????????????????????????????????????????????????? | | ?????????????????????????????????????????????????? | | ?????????????????????????????????????????????????? | | ?????????????????????????????????????????????????? | | ?????????????????????????????????????????????????? | +----------------------------------------------------+ Best States ------------- Heat Dissipation 25 Energy Generation 10 Energy Capacity 250 Matter Stores 300 Matter Capacity 300 Sight Range 16 Terrain Scan Density 10 Evasion (%) 44 Targeting Accuracy 5 Item Schematics ----------------- None Robot Schematics ------------------ None Fabricated ------------ Nothing Repaired ---------- Grenade Launcher | 63% | -10/Materials Studied --------- None Alien Tech Used ----------------- None Achievements -------------- None Challenges ------------ None Game ------ Seed BackupConcussiveStripper Manual? 0 Play Time 00:18:02 Cumulative 130.1 hours Start 2025.11.29 @ 02:48:44 End 2025.11.29 @ 03:47:36 Sessions 1 Manual Loads 0 Difficulty Rogue Special Mode None Game No. 68 Rogue 68 Adventurer 0 Explorer 0 Win Type - Total 1 Types 1/0/0/0/0/0/0/0/0/0 Lore% 62 Gallery% 59 Achievement% 45 Wizard Run 0 Options --------- Layout 1 ASCII 0 Keyboard 0 Movement Mouse Keybinds 0 Fullscreen 2 Font 32/SmallcapsGlow Map View 50x35 Zoom Use 0% Tactical HUD 1 Map Filters NONE Filters NONE Steam 1 RUN: 65d2483e-fcc7-4dfe-9c86-212a3e6fcfb2